bitfinex/quotes_ETHUSD_20260131
["timestamp","ask_amount","ask_price","bid_price","bid_amount"]
[1769882897491,1.03944056,2405.2,2403.7,0.01257703]
[1769882897665,10.71467276,2405.2,2403.7,1.0400353]
[1769882897871,0.1024,2405.1,2403.6,1.04008553]
[1769882898094,0.1024,2405.1,2403.3,4.16080592]
[1769882898280,10.81707276,2405.1,2403.5,1.0401422]
[1769882898476,10.81707276,2405.1,2403.7,1.04006251]
[1769882898993,10.81707276,2405.1,2403.6,1.04008272]
[1769882899300,10.81707276,2405.1,2403.1,9.74230101]
[1769882899472,10.81707276,2405.1,2403.7,1.04005598]
[1769882899672,1.03950103,2405.0,2403.4,1.04019305]
[1769882900500,0.98320103,2405.0,2403.4,1.04019305]
[1769882901494,0.98320103,2405.0,2403.5,0.0011]
[1769882901699,11.69787379,2405.0,2403.5,0.0011]
[1769882903803,10.71467276,2404.8,2403.5,0.0011]
[1769882904477,0.872,2404.7,2403.5,0.0011]
[1769882904895,11.58667276,2404.7,2403.5,0.0011]
[1769882906205,1.03967395,2404.6,2403.5,0.0011]
[1769882907388,1.03967395,2404.6,2403.3,0.0011]
[1769882907389,10.94824306,2404.3,2403.3,0.0011]
[1769882907592,10.71467276,2404.3,2402.8,1.04042597]
[1769882907779,10.71467276,2404.3,2402.7,1.04048444]
[1769882908180,11.75451969,2404.2,2402.6,1.04053941]
[1769882908388,11.75451969,2404.2,2402.7,0.60748327]
[1769882909380,1.03967395,2404.6,2403.2,0.01257703]
[1769882910185,0.1024,2404.7,2403.3,1.04023634]
[1769882910500,1.03958749,2404.8,2403.3,10.78253735]
[1769882910695,1.03958749,2404.8,2403.4,1.49560597]
[1769882910875,11.75426025,2404.8,2403.4,1.49560597]
[1769882911082,11.75426025,2404.8,2403.2,1.04025193]
[1769882911479,11.75426025,2404.8,2403.2,1.04027933]
[1769882911987,10.94824306,2404.4,2402.7,1.64796981]
[1769882912191,10.94824306,2404.4,2402.7,1.64794522]
[1769882912396,10.71467276,2404.2,2402.8,0.58100608]
[1769882912598,0.872,2404.1,2402.8,0.58100608]
[1769882912800,0.872,2404.1,2402.8,1.62145215]
[1769882914015,0.872,2404.1,2403.0,0.0011]
[1769882914306,0.872,2404.1,2402.8,0.0011]
[1769882914307,0.1024,2403.8,2402.8,0.0011]
[1769882915513,10.81707276,2403.8,2402.4,0.0011]
[1769882916310,1.04006323,2403.7,2402.4,0.0011]
[1769882916824,9.92556615,2403.5,2402.4,0.0011]
[1769882917022,0.872,2403.4,2402.4,0.0011]
[1769882917221,0.872,2403.4,2402.3,0.0011]
[1769882917222,10.79756615,2403.4,2402.3,0.0011]
[1769882918402,1.04023634,2403.3,2402.3,0.0011]
[1769882920094,1.04021574,2403.4,2402.3,0.0011]
[1769882920298,0.21734605,2403.8,2402.4,10.67454886]
[1769882920489,1.04003014,2403.8,2402.5,11.11773812]
[1769882920691,1.04000533,2403.9,2402.5,11.11773812]
[1769882921102,10.96557148,2403.9,2402.5,1.4838153]
[1769882921301,11.18288767,2403.9,2402.4,1.04062604]
[1769882921823,11.18288767,2403.9,2402.3,1.91375449]
[1769882922032,11.18288767,2403.9,2402.0,9.63392282]
[1769882922033,10.0064878,2403.1,2401.8,0.0011]
[1769882922331,1.0404095,2402.9,2401.8,0.0011]
[1769882924605,1.91238056,2403.0,2401.8,0.0011]
[1769882925736,1.91238056,2403.0,2401.4,0.0011]
[1769882925737,10.1088878,2402.3,2401.4,0.0011]
[1769882925901,10.1088878,2402.1,2400.5,1.25833124]
[1769882926236,10.0064878,2401.7,2399.9,0.0011]
[1769882926537,0.88457703,2402.2,2399.9,0.0011]
[1769882926538,1.0406944,2402.3,2400.9,1.04125242]
[1769882926831,1.71579962,2403.0,2401.8,0.0011]
[1769882926832,1.04053941,2402.6,2401.8,0.0011]
[1769882927003,1.72837665,2403.0,2401.8,0.0011]
[1769882927004,2.75618579,2403.0,2401.8,0.0011]
[1769882927207,1.71579962,2403.0,2401.8,0.0011]
[1769882927407,0.01257703,2403.4,2401.8,0.0011]
[1769882927408,1.04111114,2403.6,2401.8,10.47811687]
[1769882927724,0.001,2403.6,2401.9,11.24817662]
[1769882928244,0.21731619,2403.9,2402.3,0.01257703]
[1769882928402,0.29733987,2404.1,2402.3,0.01257703]
[1769882928403,1.03945781,2405.1,2403.0,9.98193605]
[1769882928596,0.01257703,2405.0,2403.2,10.7248758]
[1769882928916,0.01257703,2404.5,2403.1,2.03975747]
[1769882929097,0.01257703,2404.5,2402.9,1.04040659]
[1769882929098,0.01257703,2404.2,2402.9,1.04040659]
[1769882929432,0.01257703,2404.1,2402.7,1.04045369]
[1769882929594,0.01257703,2404.0,2402.7,1.040486]
[1769882929797,0.872,2404.5,2403.1,1.04031889]
[1769882930096,0.872,2404.5,2403.0,4.16129166]
[1769882930097,0.01257703,2404.3,2403.2,0.52016106]
[1769882930320,0.01257703,2404.3,2402.9,1.04038246]
[1769882930703,0.01257703,2404.3,2402.5,10.74124736]
[1769882930907,0.01257703,2404.9,2402.9,9.70066464]
[1769882931095,1.03956737,2404.9,2403.1,9.70230774]
[1769882931405,1.03956737,2404.9,2403.2,10.66121919]
[1769882931813,1.0521444,2404.9,2403.2,0.97148848]
[1769882932118,0.01257703,2404.8,2402.9,9.68973071]
[1769882932932,0.01257703,2404.5,2403.0,1.0403662]
[1769882933653,0.01257703,2404.5,2402.4,10.56499245]
[1769882933654,12.46311383,2404.4,2402.4,0.872]
[1769882933935,0.01257703,2403.9,2402.6,1.04053577]
[1769882934300,0.88457703,2404.4,2402.9,1.04040602]
[1769882934523,0.872,2404.4,2402.9,1.04040602]
[1769882934821,0.872,2404.4,2403.0,0.5202044]
[1769882935023,1.03980368,2404.3,2403.1,1.04032291]
[1769882935258,5.03106916,2404.4,2403.0,1.56054418]
[1769882935259,0.872,2404.4,2403.0,1.56054418]
[1769882935418,1.03964679,2404.7,2403.0,10.73665723]
[1769882935616,1.03964679,2404.7,2403.0,10.74923426]
[1769882935847,11.04613459,2404.7,2403.0,1.04033978]
[1769882936025,10.01906483,2404.4,2402.9,1.04040797]
[1769882936219,10.01906483,2404.4,2402.1,0.01257703]
[1769882936220,10.01906483,2404.4,2402.8,1.04043851]
[1769882936429,0.01257703,2404.3,2402.8,1.04042425]
[1769882936631,10.0064878,2404.0,2402.5,1.04057149]
[1769882936948,1.0399767,2403.9,2402.5,4.76984406]
[1769882937247,1.0399767,2403.9,2402.6,1.04053941]
[1769882938735,10.2400581,2403.8,2401.9,1.04781169]
[1769882938938,10.1088878,2403.5,2401.8,0.0011]
[1769882939247,1.04019305,2403.4,2403.0,0.0011]
[1769882939439,1.04019305,2403.4,2401.8,0.0011]
[1769882939746,1.04019305,2403.4,2402.0,0.0011]
[1769882940450,1.03984693,2404.2,2402.6,0.01257703]
[1769882940622,0.54165365,2404.1,2402.5,0.872]
[1769882941031,0.54165365,2404.1,2402.6,1.04053941]
[1769882941032,1.03993344,2404.0,2402.6,1.04053941]
[1769882941229,1.039919,2404.1,2402.6,1.04053941]
[1769882941427,1.03971719,2404.5,2402.9,0.01257703]
[1769882941628,1.03971719,2404.5,2402.6,1.04053941]
[1769882941942,0.5198438,2404.4,2402.7,0.60874276]
[1769882942356,10.0064878,2404.3,2402.7,0.60874276]
[1769882942538,10.01906483,2404.3,2402.7,0.60874276]
[1769882942731,0.2335703,2404.2,2402.7,0.60874276]
[1769882943066,0.2335703,2404.2,2402.2,1.04071268]
[1769882943067,1.03989018,2404.1,2402.2,1.04071268]
[1769882943239,1.03989018,2404.1,2402.2,10.76107049]
[1769882943429,0.79427089,2404.0,2402.3,1.58085916]
[1769882943827,10.80075869,2404.0,2402.3,1.58085916]
[1769882944158,10.80075869,2404.0,2402.2,1.04071268]
[1769882944859,0.42702652,2404.3,2402.3,9.70902381]
[1769882945035,0.46838435,2404.9,2402.3,9.70902381]
[1769882945036,0.01257703,2405.9,2404.5,1.07682987]
[1769882945234,10.60010509,2407.1,2404.9,0.01257703]
[1769882945439,0.001,2406.1,2405.3,0.21614977]
[1769882945858,0.01257703,2405.9,2405.3,0.21614977]
[1769882946253,0.01257703,2405.9,2405.3,0.21514977]
[1769882946842,0.01257703,2405.8,2405.3,0.21514977]
[1769882947532,0.01257703,2405.8,2405.3,1.25449694]
[1769882947747,0.01257703,2405.8,2405.3,0.21514977]
[1769882947948,0.01257703,2406.0,2405.3,1.25449989]
[1769882949075,0.01257703,2405.9,2405.3,0.21514977]
[1769882949564,0.01257703,2405.8,2404.5,0.872]
[1769882949766,0.01257703,2405.6,2405.0,1.03950103]
[1769882949975,0.01257703,2405.6,2404.9,1.03952817]
[1769882950160,0.01257703,2405.6,2404.1,4.15946522]
[1769882950360,0.01257703,2405.6,2404.8,1.03956803]
[1769882950554,0.01257703,2405.6,2404.6,1.03963519]
[1769882950761,0.01257703,2405.4,2404.5,4.15886096]
[1769882951137,0.01257703,2405.4,2404.7,1.03959254]
[1769882951368,0.01257703,2405.4,2404.8,1.03956343]
[1769882951577,0.01257703,2405.4,2405.2,0.0011]
[1769882951744,0.01357703,2405.7,2404.9,1.03952037]
[1769882951948,0.01357703,2405.7,2405.0,0.0011]
[1769882953373,0.001,2406.2,2405.0,0.0011]
[1769882953674,0.21650881,2406.6,2405.2,1.41185877]
[1769882953972,10.60060509,2407.3,2405.3,0.64540942]
[1769882954344,10.60060509,2407.3,2405.3,0.65798645]
[1769882954549,0.001,2407.2,2405.4,0.4065074]
[1769882954745,0.01257703,2407.0,2405.3,0.64540942]
[1769882954943,0.01257703,2406.9,2405.3,0.64540942]
[1769882955268,0.01257703,2407.0,2405.3,0.64540942]
[1769882955763,0.01257703,2406.8,2405.4,1.03932817]
[1769882956068,0.01257703,2406.8,2405.0,0.0011]
[1769882956069,10.61318212,2406.6,2405.0,0.0011]
[1769882956267,0.01257703,2406.1,2405.1,1.03944678]
[1769882956454,10.60060509,2405.9,2405.0,0.0011]
[1769882956768,10.61318212,2405.9,2405.0,1.04059561]
[1769882956977,10.61318212,2405.9,2405.0,0.0011]
[1769882957177,0.01257703,2405.8,2405.0,0.0011]
[1769882957393,0.01257703,2406.0,2405.2,1.03941021]
[1769882957589,0.88457703,2406.8,2405.0,0.0011]
[1769882957787,0.01257703,2406.4,2405.0,0.0011]
[1769882958101,10.61318212,2406.4,2405.0,0.0011]
[1769882958603,10.60060509,2406.4,2405.0,0.0011]
[1769882958953,5.03950944,2406.8,2405.0,0.0011]
[1769882958954,0.01257703,2406.8,2405.0,0.0011]
[1769882959154,0.001,2407.2,2405.4,0.01257703]
[1769882959453,0.001,2407.2,2405.6,0.57069876]
[1769882959649,0.001,2407.2,2405.7,1.03919857]
[1769882959893,0.001,2407.2,2405.8,0.51959928]
[1769882960895,10.60160509,2407.2,2405.8,0.51959928]
[1769882961122,10.60160509,2407.2,2405.7,1.03919857]
[1769882961270,0.001,2407.2,2405.7,1.03919857]
[1769882961475,1.05101,2407.5,2405.7,1.03919857]
[1769882961476,0.21697053,2408.0,2405.8,0.72251165]
[1769882961662,0.01257703,2408.5,2405.8,0.72251165]
[1769882961663,1.03760272,2409.4,2407.4,0.01257703]
[1769882961862,1.03760272,2409.4,2407.5,0.174]
[1769882962075,1.03760272,2409.4,2407.9,0.01257703]
[1769882962284,11.9332334,2409.5,2407.9,0.01257703]
[1769882962499,0.21649462,2410.2,2409.0,0.01257703]
[1769882962707,0.35785581,2410.5,2409.0,0.01257703]
[1769882962708,0.28962109,2410.8,2409.1,0.01257703]
[1769882962862,1.32665196,2410.8,2409.0,0.18657703]
[1769882963201,0.28962109,2410.8,2409.0,0.174]
[1769882963400,0.28962109,2410.8,2409.1,0.01257703]
[1769882963701,1.32662235,2410.8,2409.1,1.05030896]
[1769882963872,1.03700126,2410.8,2409.2,0.01257703]
[1769882964061,0.21669184,2411.4,2409.7,0.01257703]
[1769882964261,4.14583986,2412.1,2410.2,0.01257703]
[1769882964561,11.93309274,2412.2,2410.9,0.01257703]
[1769882964562,0.001,2412.2,2410.9,0.01257703]
[1769882964757,0.001,2412.2,2410.3,0.01257703]
[1769882964983,0.001,2412.2,2410.6,0.01257703]
[1769882965209,0.001,2412.2,2410.3,0.01257703]
[1769882965378,1.03742792,2412.2,2410.4,0.01257703]
[1769882965584,0.001,2412.2,2410.6,1.04966323]
[1769882965915,0.001,2412.2,2410.6,1.0370862]
[1769882966161,0.001,2412.2,2410.5,4.14834481]
[1769882966162,10.89665147,2412.2,2410.5,1.0371103]
[1769882966412,10.89565147,2412.1,2410.5,1.0371103]
[1769882966627,10.89565147,2412.1,2410.5,0.51856272]
[1769882966788,10.89565147,2411.8,2409.9,1.03736147]
[1769882967089,0.01357703,2412.2,2410.5,1.03712782]
[1769882967090,0.1024,2412.1,2410.5,1.03712782]
[1769882967287,10.99805147,2412.1,2410.5,1.55570901]
[1769882967485,0.001,2412.2,2410.5,1.55570901]
[1769882967486,0.001,2412.2,2410.7,0.01257703]
[1769882967691,0.001,2412.2,2410.7,1.03704318]
[1769882967887,0.001,2412.2,2410.6,1.03706094]
[1769882968088,0.001,2412.2,2410.6,1.60745963]
[1769882968308,0.001,2412.2,2410.7,0.01257703]
[1769882968654,0.001,2412.2,2410.9,0.01257703]
[1769882968921,0.001,2412.2,2410.8,0.87]
[1769882969291,0.001,2412.2,2410.9,0.01257703]
[1769882969537,0.29031041,2412.9,2411.5,0.01257703]
[1769882969690,1.03692935,2413.3,2411.8,1.03657019]
[1769882969889,0.001,2413.3,2411.9,0.53211983]
[1769882970085,1.03694948,2413.3,2411.9,0.5195428]
[1769882970285,0.001,2413.3,2411.9,0.53211983]
[1769882970493,1.03695943,2413.3,2412.0,0.01257703]
[1769882970694,1.03695943,2413.3,2411.9,0.5195428]
[1769882970892,1.03695943,2413.3,2411.7,1.0365947]
[1769882971094,1.03695943,2413.3,2411.7,1.03659825]
[1769882971516,1.03695943,2413.3,2411.7,1.04917528]
[1769882971810,0.001,2413.3,2411.7,1.04917528]
[1769882971991,0.001,2413.3,2411.8,0.5208205]
[1769882972185,11.02417138,2413.3,2411.7,1.03659872]
[1769882972408,11.02417138,2413.3,2411.7,1.03660216]
[1769882972584,11.02417138,2413.3,2411.6,4.14659711]
[1769882972585,11.02317138,2413.1,2411.3,4.14698248]
[1769882972812,11.02317138,2413.1,2410.8,0.88257703]
[1769882972813,11.02317138,2412.9,2410.8,0.87]
[1769882973013,11.02317138,2412.5,2411.0,1.03688188]
[1769882973192,11.02317138,2412.5,2411.1,1.03686995]
[1769882973398,11.02317138,2412.5,2411.0,1.03689182]
[1769882973594,11.02317138,2412.5,2410.9,1.03693531]
[1769882973819,11.12557138,2412.3,2410.3,1.03720389]
[1769882973996,11.02317138,2412.3,2410.6,0.01257703]
[1769882974199,11.02317138,2412.3,2410.9,0.01257703]
[1769882974522,11.02317138,2412.3,2410.6,0.01257703]
[1769882974705,11.02317138,2412.3,2410.1,4.14886113]
[1769882975089,11.02317138,2412.3,2410.3,1.03720389]
[1769882975520,11.02317138,2412.3,2410.3,1.04978092]
[1769882975717,11.02317138,2412.1,2410.3,1.03720389]
[1769882975901,0.001,2413.1,2411.3,0.01257703]
[1769882976099,0.001,2413.1,2410.7,0.01257703]
[1769882976100,10.98389282,2412.9,2411.1,0.87]
[1769882976496,10.98389282,2412.9,2411.4,0.01257703]
[1769882976812,10.98389282,2412.9,2411.3,0.01257703]
[1769882976997,10.98389282,2412.9,2411.4,0.01257703]
[1769882977202,10.98389282,2412.9,2411.3,0.01257703]
[1769882977520,10.98389282,2412.9,2411.4,0.01257703]
[1769882977692,10.98389282,2412.9,2411.5,1.04927617]
[1769882977891,12.01999831,2412.9,2411.5,1.04927617]
[1769882978093,12.01999831,2412.9,2411.6,0.52086498]
[1769882978295,12.01999831,2412.9,2411.1,1.90684532]
[1769882978504,10.98389282,2412.7,2411.2,1.03682691]
[1769882978700,10.98389282,2412.7,2410.5,0.01257703]
[1769882978701,0.1024,2412.4,2410.0,0.01257703]
[1769882978903,10.98389282,2412.3,2410.8,1.03699168]
[1769882979106,10.98389282,2412.3,2410.5,4.14842328]
[1769882979422,10.98389282,2412.3,2409.9,0.88257703]
[1769882979423,10.98389282,2411.9,2410.1,1.03727319]
[1769882979721,10.98389282,2411.9,2409.2,4.16323233]
[1769882979722,10.98389282,2411.5,2409.5,1.03755965]
[1769882980025,10.98389282,2411.5,2409.8,0.01257703]
[1769882980327,10.98389282,2411.5,2409.9,0.01257703]
[1769882980508,10.98389282,2411.5,2409.5,1.03755965]
[1769882980820,10.98389282,2411.3,2409.6,0.51877983]
[1769882981011,1.15163319,2411.6,2409.4,1.03759061]
[1769882981012,10.98389282,2411.1,2409.4,1.03759061]
[1769882981212,10.98389282,2411.1,2409.4,1.03756254]
[1769882981722,10.98389282,2411.1,2409.5,0.01257703]
[1769882981900,10.98389282,2411.1,2409.6,1.05009363]
[1769882982101,12.02078365,2411.1,2409.6,1.05009363]
[1769882982303,10.98389282,2411.1,2409.9,0.01257703]
[1769882982504,1.03672426,2411.5,2410.1,0.01257703]
[1769882982705,12.02061708,2411.5,2409.7,0.01257703]
[1769882982911,10.98389282,2411.3,2409.7,0.58736548]
[1769882983231,10.98389282,2411.3,2409.7,0.57478845]
[1769882983595,10.98389282,2411.3,2409.7,0.58736548]
[1769882983797,10.98389282,2411.3,2409.9,0.01257703]
[1769882984308,12.02072095,2411.2,2409.9,1.03738744]
[1769882984509,12.02072095,2411.2,2410.0,0.51869372]
[1769882985525,12.02072095,2411.2,2409.9,1.03738744]
[1769882986327,10.98389282,2411.2,2409.8,4.14954977]
[1769882986624,10.98389282,2411.8,2410.3,0.01257703]
[1769882986928,10.98389282,2411.8,2410.4,0.01257703]
[1769882987126,10.98389282,2411.8,2410.0,0.01257703]
[1769882987127,10.98389282,2411.8,2409.8,4.14954977]
[1769882987297,10.98389282,2411.8,2410.0,0.01367703]
[1769882987502,10.98389282,2411.8,2410.2,0.01257703]
[1769882988207,12.02050599,2411.7,2410.3,1.04979231]
[1769882988730,12.02050599,2411.7,2410.3,1.03721528]
[1769882988898,10.98389282,2411.5,2410.3,1.55582292]
[1769882989299,10.98389282,2411.5,2410.3,0.51860764]
[1769882989503,10.98389282,2411.5,2410.2,1.03723583]
[1769882989829,10.98389282,2411.5,2410.1,4.14918208]
[1769882989830,10.98389282,2411.5,2410.1,1.03727843]
[1769882990002,10.98389282,2411.5,2410.2,1.03725789]
[1769882990430,10.98389282,2411.3,2410.0,1.03844439]
[1769882990820,12.02049246,2411.8,2410.4,0.01257703]
[1769882991124,10.98389282,2412.2,2410.9,0.01257703]
[1769882991540,10.98389282,2412.2,2410.7,0.01257703]
[1769882991837,10.98389282,2412.2,2409.9,4.26435462]
[1769882992033,10.98389282,2412.2,2410.8,0.01257703]
[1769882992230,10.98389282,2412.2,2410.7,0.01257703]
[1769882992430,12.02033409,2412.1,2410.8,1.03700016]
[1769882992632,10.98389282,2412.1,2410.9,0.51975779]
[1769882993238,10.98389282,2412.1,2410.0,0.88267703]
[1769882993437,10.98389282,2412.1,2410.6,1.03708364]
[1769882994014,10.98389282,2412.1,2410.1,4.14918138]
[1769882994225,10.98389282,2412.1,2410.6,1.03705797]
[1769882994420,10.98389282,2412.1,2410.1,4.14918138]
[1769882994421,10.98389282,2411.9,2410.1,1.03730135]
[1769882994644,10.99646985,2411.7,2410.0,1.90741913]
[1769882995146,10.98389282,2411.5,2410.0,1.90741913]
[1769882995543,10.98389282,2411.5,2410.0,1.91999616]
[1769882996113,10.98389282,2411.5,2410.0,1.03841913]
[1769882996846,10.98389282,2411.3,2410.0,0.0011]
[1769882997019,10.98389282,2411.3,2410.0,0.833728]
[1769882998842,12.02072095,2411.2,2410.1,1.03730135]
[1769882999034,12.02072095,2411.2,2410.0,1.87105039]
[1769882999462,12.02072095,2411.2,2410.2,0.0011]
[1769882999463,10.98389282,2411.0,2410.2,0.0011]
[1769883000121,10.98389282,2411.5,2410.2,0.0011]
[1769883000342,10.98389282,2411.5,2410.2,0.01367703]
[1769883000715,12.02059281,2411.5,2410.2,0.0011]
[1769883001040,10.98389282,2411.5,2410.2,1.05093534]
[1769883001245,12.02060593,2411.5,2410.2,1.05093534]
[1769883001445,10.98389282,2411.5,2410.3,0.01257703]
[1769883001615,10.98389282,2411.5,2410.2,1.05093534]
[1769883001944,12.02059748,2411.5,2410.3,0.60815456]
[1769883002146,10.98389282,2411.5,2410.3,0.60815456]
[1769883002349,10.98389282,2411.3,2410.3,0.60815456]
[1769883002844,10.98389282,2411.3,2410.4,1.03717225]
[1769883003348,12.02068039,2411.3,2410.3,1.64535205]
[1769883003848,10.98389282,2411.3,2410.3,1.64535205]
[1769883004044,12.02068201,2411.3,2410.3,1.64535205]
[1769883004247,12.02068201,2411.3,2410.2,0.0011]
[1769883004751,10.98334282,2411.1,2410.3,1.03719734]
[1769883004950,10.98334282,2411.1,2410.0,4.15042733]
[1769883005119,0.869,2411.6,2410.1,0.01257703]
[1769883005120,10.98334282,2411.6,2410.1,0.01257703]
[1769883005325,12.01974112,2412.2,2410.6,0.01257703]
[1769883005543,10.98334282,2412.1,2410.5,0.01257703]
[1769883005743,10.98334282,2412.1,2410.6,0.869]
[1769883006258,10.98334282,2412.1,2410.1,0.52255459]
[1769883006259,11.08574282,2411.9,2410.1,0.52255459]
[1769883006462,11.09831985,2411.7,2410.0,0.0011]
[1769883006660,10.98334282,2411.1,2410.0,0.0011]
[1769883006956,10.98279282,2410.7,2409.8,0.0011]
[1769883008743,4.24981849,2411.2,2409.8,0.0011]
[1769883008744,10.98279282,2411.2,2409.8,0.0011]
[1769883009080,12.01966395,2411.1,2409.8,0.0011]
[1769883009371,10.98279282,2410.9,2409.8,0.0011]
[1769883009534,10.98279282,2410.7,2409.8,0.0011]
[1769883009937,10.98279282,2410.7,2409.3,1.0376209]
[1769883010137,10.98279282,2410.7,2409.0,0.0011]
[1769883010138,10.98279282,2410.7,2409.2,1.03765578]
[1769883010336,10.98279282,2410.7,2409.2,1.03768682]
[1769883010636,0.869,2410.8,2409.0,0.0011]
[1769883010637,10.98224282,2410.3,2409.0,0.0011]
[1769883010844,0.21674201,2410.6,2409.7,1.03747301]
[1769883011041,10.43081544,2410.9,2409.5,4.15021509]
[1769883011042,10.43081544,2410.7,2409.5,0.0011]
[1769883011744,11.29981544,2410.7,2409.5,0.0011]
[1769883013037,12.33685998,2410.7,2409.5,1.03865965]
[1769883013347,10.43081544,2410.7,2409.5,1.00123668]
[1769883013555,0.869,2411.1,2409.5,0.98865965]
[1769883013751,11.29981544,2411.1,2409.5,0.98865965]
[1769883013956,11.29981544,2411.1,2409.6,0.51514753]
[1769883014563,11.29981544,2411.1,2409.6,0.52772456]
[1769883014948,0.29004563,2411.5,2410.0,0.01257703]
[1769883015270,0.29004563,2411.5,2410.2,0.01257703]
[1769883015442,0.29004563,2411.5,2410.4,0.01257703]
[1769883015753,0.29004563,2411.5,2410.3,0.01257703]
[1769883016060,0.29004563,2411.5,2410.2,0.01257703]
[1769883016263,0.29004563,2411.5,2410.1,0.01257703]
[1769883016868,11.75756225,2411.5,2409.7,1.03747354]
[1769883017069,11.77013928,2411.5,2409.8,0.57025152]
[1769883017372,10.43081544,2411.3,2409.8,0.57025152]
[1769883017562,10.44339247,2411.1,2409.6,1.03750989]
[1769883017877,10.43081544,2410.9,2409.6,1.03750989]
[1769883018374,10.43081544,2410.9,2409.3,0.0011]
[1769883018550,10.43081544,2410.9,2409.5,1.03755912]
[1769883018968,10.43081544,2410.7,2409.3,0.0011]
[1769883019267,10.43081544,2410.7,2409.3,0.60695443]
[1769883020043,11.29981544,2410.7,2409.3,0.60695443]
[1769883021275,11.46790164,2410.6,2409.4,1.03760272]
[1769883021482,10.43081544,2410.6,2409.4,1.03760272]
[1769883023482,11.46790551,2410.6,2409.4,1.03760272]
[1769883023700,11.46790551,2410.6,2409.6,0.0011]
[1769883025302,11.46790551,2410.6,2409.3,0.0011]
[1769883025303,10.43081544,2410.2,2409.3,0.0011]
[1769883025467,10.43081544,2410.2,2409.0,0.0011]
[1769883025674,0.01257703,2409.9,2408.4,0.0011]
[1769883025873,10.43081544,2409.4,2408.4,0.0011]
[1769883026603,10.43081544,2409.2,2407.6,1.03834792]
[1769883026806,0.01257703,2409.3,2407.7,1.03830726]
[1769883026807,10.43081544,2409.0,2407.7,1.03830726]
[1769883027006,10.43081544,2409.0,2407.6,1.03835252]
[1769883027210,10.43081544,2408.8,2407.4,0.7846759]
[1769883027386,10.43081544,2408.8,2406.7,0.01257703]
[1769883027387,10.43081544,2408.8,2407.2,1.03853988]
[1769883027707,10.43081544,2408.8,2406.5,4.16793285]
[1769883027708,10.43081544,2408.2,2406.0,0.01257703]
[1769883028000,10.43081544,2408.2,2407.3,1.03848309]
[1769883028178,10.43081544,2408.2,2407.2,1.03852441]
[1769883028509,10.43081544,2408.2,2407.4,1.03844834]
[1769883028810,10.43081544,2408.2,2407.4,1.03844728]
[1769883029183,10.43081544,2408.2,2407.0,4.15450151]
[1769883030199,10.43081544,2408.2,2407.1,0.01257703]
[1769883030396,0.01257703,2409.2,2407.1,0.01257703]
[1769883030397,10.43081544,2409.2,2407.5,0.01257703]
[1769883030599,10.43081544,2409.2,2407.4,0.01257703]
[1769883030898,10.43081544,2409.2,2407.3,0.01257703]
[1769883031099,10.43081544,2409.2,2407.4,0.01257703]
[1769883031517,10.43081544,2409.0,2407.5,1.05099862]
[1769883031730,10.43081544,2409.0,2407.6,0.5217262]
[1769883032027,10.43081544,2409.0,2407.7,0.01257703]
[1769883032222,10.43081544,2409.0,2407.8,0.01257703]
[1769883032561,0.87,2409.5,2408.0,0.01257703]
[1769883032732,10.43081544,2409.6,2408.1,0.01257703]
[1769883033215,10.43081544,2409.6,2407.4,4.16626342]
[1769883033393,1.03755965,2409.5,2407.7,1.03833534]
[1769883033715,10.43081544,2409.4,2407.8,0.57259799]
[1769883034517,10.44339247,2409.4,2407.8,0.57259799]
[1769883034718,10.43081544,2409.2,2407.7,1.03833534]
[1769883035525,10.43081544,2409.0,2408.3,0.0011]
[1769883035832,0.87,2408.9,2408.3,0.0011]
[1769883036035,10.43081544,2409.5,2408.3,0.0011]
[1769883036206,11.30081544,2409.5,2408.3,0.0011]
[1769883036416,10.43081544,2410.2,2408.3,0.0011]
[1769883036621,10.43081544,2410.2,2408.8,0.01257703]
[1769883036825,10.43081544,2410.2,2408.7,0.01257703]
[1769883037027,0.001,2410.4,2408.9,0.01257703]
[1769883037451,0.001,2410.4,2409.4,0.01257703]
[1769883037656,11.62944722,2411.2,2409.6,0.01257703]
[1769883037956,11.62944722,2411.2,2409.6,0.52255294]
[1769883038256,11.62944722,2411.2,2409.7,0.01257703]
[1769883038573,0.29004563,2411.5,2410.2,0.01257703]
[1769883038720,0.29004563,2411.5,2409.8,0.01257703]
[1769883038922,0.29004563,2411.5,2410.1,0.01257703]
[1769883039530,0.29004563,2411.5,2410.2,1.04983534]
[1769883039732,0.29004563,2411.5,2410.3,0.52114456]
[1769883041047,1e-08,2411.5,2410.3,0.52114456]
[1769883042564,1e-08,2411.5,2410.4,1.03717225]
[1769883043156,10.80237033,2412.7,2410.4,12.08992593]
[1769883043361,10.7897933,2412.7,2410.9,0.01257703]
[1769883043562,0.001,2412.7,2410.9,11.06533071]
[1769883043865,0.001,2412.7,2411.4,0.01257703]
[1769883044073,0.001,2412.7,2411.1,0.01257703]
[1769883044368,0.001,2412.7,2411.2,0.01257703]
[1769883044564,0.001,2412.7,2411.3,1.04936216]
[1769883044771,0.001,2412.7,2411.4,0.60790797]
[1769883046567,0.001,2412.7,2411.8,1.03657019]
[1769883047776,0.001,2413.1,2411.9,0.01257703]
[1769883047976,0.001,2413.3,2412.1,0.01257703]
[1769883048156,0.001,2413.3,2412.3,0.01257703]
[1769883048356,1.90448924,2414.4,2412.6,0.01257703]
[1769883048556,0.869,2414.4,2412.9,1.03609764]
[1769883048870,0.869,2414.4,2413.0,0.51930652]
[1769883049452,0.29652041,2415.1,2413.6,0.01257703]
[1769883049674,0.29652041,2415.1,2414.0,0.01257703]
[1769883049846,11.82345981,2416.3,2414.5,0.01257703]
[1769883050044,11.82345981,2416.3,2414.1,0.01257703]
[1769883050045,10.80137033,2416.1,2413.8,0.88157703]
[1769883050356,10.80137033,2416.1,2413.1,0.01257703]
[1769883050357,10.80137033,2415.5,2413.1,0.01257703]
[1769883050561,10.80137033,2415.5,2413.8,1.03571132]
[1769883050562,1.03511096,2415.2,2413.8,1.03571132]
[1769883050762,1.03511096,2415.2,2412.4,0.01257703]
[1769883050763,10.7887933,2414.8,2412.4,0.01257703]
[1769883050962,10.7887933,2414.8,2411.9,11.05275368]
[1769883050963,10.7887933,2414.4,2412.5,1.03623306]
[1769883051179,10.7887933,2414.4,2411.7,4.1463156]
[1769883051180,10.7887933,2414.2,2412.4,1.03627858]
[1769883051378,10.80137033,2414.2,2412.5,1.03626727]
[1769883051587,10.7887933,2413.9,2412.3,1.03635112]
[1769883051786,10.7887933,2413.9,2412.2,4.14557681]
[1769883051988,10.7887933,2413.3,2411.4,0.60790797]
[1769883052288,0.869,2413.2,2411.8,1.03656602]
[1769883052656,11.82480506,2413.1,2411.4,4.14686272]
[1769883052856,11.82480506,2413.1,2411.1,0.869]
[1769883053054,10.7887933,2412.9,2411.3,1.03677836]
[1769883053282,10.7887933,2412.9,2411.0,1.03689431]